[Event "Late-Titled-Tuesday-Blitz-January-23-2024"]
[Site "Chess.com"]
[Date "2024.01.23"]
[Round "9"]
[White "shimastream"]
[Black "Polish_fighter3000"]
[Result "0-1"]
[WhiteElo "3004"]
[BlackElo "3102"]
[TimeControl "180+1"]
[EndTime "15:42:10 PST"]
[Termination "Polish_fighter3000 won by checkmate"]

1. e4 {[%clk 0:03:00]} 1... d6 {[%clk 0:03:00.2]} 2. d4 {[%clk 0:02:59.3]} 2...
Nf6 {[%clk 0:03:00.9]} 3. f3 {[%clk 0:02:57]} 3... g6 {[%clk 0:02:55.2]} 4. c4
{[%clk 0:02:56.6]} 4... Bg7 {[%clk 0:02:55.8]} 5. Be3 {[%clk 0:02:56.5]} 5...
O-O {[%clk 0:02:55.1]} 6. Ne2 {[%clk 0:02:56.6]} 6... c5 {[%clk 0:02:51.7]} 7.
d5 {[%clk 0:02:55.9]} 7... e6 {[%clk 0:02:45.1]} 8. Nec3 {[%clk 0:02:55.8]} 8...
exd5 {[%clk 0:02:39.6]} 9. cxd5 {[%clk 0:02:56.7]} 9... Nbd7 {[%clk 0:02:40]}
10. Nd2 {[%clk 0:02:56.2]} 10... Ne5 {[%clk 0:02:39]} 11. Be2 {[%clk 0:02:55.2]}
11... h6 {[%clk 0:02:32.2]} 12. O-O {[%clk 0:02:53.2]} 12... g5 {[%clk
0:02:32.3]} 13. a4 {[%clk 0:02:48.9]} 13... a6 {[%clk 0:02:18.9]} 14. Qc2 {[%clk
0:02:44.6]} 14... Rb8 {[%clk 0:02:18.2]} 15. a5 {[%clk 0:02:39.4]} 15... b5
{[%clk 0:02:15.8]} 16. axb6 {[%clk 0:02:39.1]} 16... Rxb6 {[%clk 0:02:16.4]} 17.
b3 {[%clk 0:02:35.7]} 17... Qe7 {[%clk 0:02:00.5]} 18. Rfe1 {[%clk 0:02:32]}
18... Nh5 {[%clk 0:01:56.4]} 19. Nc4 {[%clk 0:01:55.9]} 19... Rb4 {[%clk
0:01:52.2]} 20. Bd2 {[%clk 0:01:43]} 20... Nf4 {[%clk 0:01:48.5]} 21. Bf1 {[%clk
0:01:42.1]} 21... f5 {[%clk 0:01:39.9]} 22. exf5 {[%clk 0:01:40.3]} 22... Bxf5
{[%clk 0:01:38.5]} 23. Ne4 {[%clk 0:01:39.4]} 23... Nh3+ {[%clk 0:01:25.3]} 24.
Kh1 {[%clk 0:01:26.7]} 24... Nf2+ {[%clk 0:01:24.1]} 25. Kg1 {[%clk 0:01:26.2]}
25... Nh3+ {[%clk 0:01:20.4]} 26. Kh1 {[%clk 0:01:26.2]} 26... Bxe4 {[%clk
0:01:15.2]} 27. fxe4 {[%clk 0:01:15.1]} 27... Nf2+ {[%clk 0:01:15.3]} 28. Kg1
{[%clk 0:01:14.8]} 28... Neg4 {[%clk 0:01:11.9]} 29. Bc3 {[%clk 0:01:11]} 29...
Bd4 {[%clk 0:00:37.3]} 30. Bxd4 {[%clk 0:00:53.6]} 30... cxd4 {[%clk 0:00:38.2]}
31. Rxa6 {[%clk 0:00:39.8]} 31... d3 {[%clk 0:00:37.9]} 32. Qc3 {[%clk
0:00:22.5]} 32... Qf7 {[%clk 0:00:24.9]} 33. Qd4 {[%clk 0:00:04.4]} 33... Nxh2
{[%clk 0:00:14.4]} 34. Kxh2 {[%clk 0:00:03.1]} 34... Qh5+ {[%clk 0:00:13.9]} 35.
Kg1 {[%clk 0:00:02.9]} 35... Qh1# {[%clk 0:00:14]} 0-1

[Event "Late-Titled-Tuesday-Blitz-January-23-2024"]
[Site "Chess.com"]
[Date "2024.01.23"]
[Round "9"]
[White "IsaqueGoncalvesSanto"]
[Black "katharinareinecke"]
[Result "1-0"]
[WhiteElo "1799"]
[BlackElo "1984"]
[TimeControl "180+1"]
[EndTime "15:42:10 PST"]
[Termination "IsaqueGoncalvesSanto won on time"]

1. d4 {[%clk 0:02:55.2]} 1... d5 {[%clk 0:02:58.4]} 2. c4 {[%clk 0:02:54.7]}
2... c6 {[%clk 0:02:57.9]} 3. Nc3 {[%clk 0:02:54.1]} 3... e6 {[%clk 0:02:57.4]}
4. e3 {[%clk 0:02:53.5]} 4... Nf6 {[%clk 0:02:56.2]} 5. Bd3 {[%clk 0:02:46.2]}
5... dxc4 {[%clk 0:02:54.5]} 6. Bxc4 {[%clk 0:02:45.8]} 6... b5 {[%clk
0:02:54.7]} 7. Bd3 {[%clk 0:02:45.6]} 7... Bb7 {[%clk 0:02:54.9]} 8. a3 {[%clk
0:02:44.5]} 8... Be7 {[%clk 0:02:53.4]} 9. Bd2 {[%clk 0:02:43.4]} 9... O-O
{[%clk 0:02:51.1]} 10. Nf3 {[%clk 0:02:39.6]} 10... a6 {[%clk 0:02:49.9]} 11. b4
{[%clk 0:02:39.1]} 11... a5 {[%clk 0:02:42.9]} 12. Ne2 {[%clk 0:02:33.8]} 12...
axb4 {[%clk 0:02:40.4]} 13. axb4 {[%clk 0:02:33.4]} 13... Nbd7 {[%clk 0:02:34]}
14. O-O {[%clk 0:02:17.5]} 14... Nd5 {[%clk 0:02:33.5]} 15. Qb3 {[%clk
0:02:14.1]} 15... N5b6 {[%clk 0:02:04.4]} 16. Ng3 {[%clk 0:02:02.4]} 16... Ra4
{[%clk 0:02:00.1]} 17. Rxa4 {[%clk 0:01:57.2]} 17... Nxa4 {[%clk 0:01:59.4]} 18.
Ne4 {[%clk 0:01:40.6]} 18... Nf6 {[%clk 0:01:55.9]} 19. Nc5 {[%clk 0:01:39.6]}
19... Nxc5 {[%clk 0:01:54.7]} 20. bxc5 {[%clk 0:01:38.1]} 20... Qc7 {[%clk
0:01:47.4]} 21. Ne5 {[%clk 0:01:36.9]} 21... Ra8 {[%clk 0:01:44.2]} 22. f4
{[%clk 0:01:30.9]} 22... Nd5 {[%clk 0:01:40.8]} 23. e4 {[%clk 0:01:27.1]} 23...
Nf6 {[%clk 0:01:36.2]} 24. g4 {[%clk 0:01:24]} 24... g6 {[%clk 0:01:29.2]} 25.
Bc3 {[%clk 0:01:15.1]} 25... Bc8 {[%clk 0:01:25.7]} 26. h4 {[%clk 0:01:07.5]}
26... h5 {[%clk 0:01:10.5]} 27. g5 {[%clk 0:01:02.7]} 27... Ne8 {[%clk
0:01:07.6]} 28. Bb2 {[%clk 0:00:56.3]} 28... Ng7 {[%clk 0:01:05.4]} 29. Bb1
{[%clk 0:00:54.6]} 29... Bd8 {[%clk 0:00:57.3]} 30. Qc3 {[%clk 0:00:54.4]} 30...
f6 {[%clk 0:00:42.2]} 31. Nxg6 {[%clk 0:00:53.5]} 31... fxg5 {[%clk 0:00:39.8]}
32. hxg5 {[%clk 0:00:44]} 32... Kh7 {[%clk 0:00:37.7]} 33. e5 {[%clk 0:00:42.4]}
33... Kg8 {[%clk 0:00:33.8]} 34. Nh4 {[%clk 0:00:42]} 34... Qf7 {[%clk
0:00:31.8]} 35. Ng2 {[%clk 0:00:40.8]} 35... Nf5 {[%clk 0:00:31.6]} 36. Qh3
{[%clk 0:00:34.2]} 36... Bd7 {[%clk 0:00:29]} 37. Bxf5 {[%clk 0:00:32.1]} 37...
exf5 {[%clk 0:00:28]} 38. Ne3 {[%clk 0:00:28.3]} 1-0

[Event "Late-Titled-Tuesday-Blitz-January-23-2024"]
[Site "Chess.com"]
[Date "2024.01.23"]
[Round "9"]
[White "brunoo2003"]
[Black "bescmelasti"]
[Result "1-0"]
[WhiteElo "2553"]
[BlackElo "2692"]
[TimeControl "180+1"]
[EndTime "15:42:12 PST"]
[Termination "brunoo2003 won on time"]

1. d4 {[%clk 0:02:45.5]} 1... d5 {[%clk 0:02:59]} 2. c4 {[%clk 0:02:45.8]} 2...
Nc6 {[%clk 0:02:59.9]} 3. Nf3 {[%clk 0:02:42.5]} 3... Bg4 {[%clk 0:02:59.7]} 4.
cxd5 {[%clk 0:02:39.5]} 4... Bxf3 {[%clk 0:02:59.9]} 5. dxc6 {[%clk 0:02:21]}
5... Bxc6 {[%clk 0:03:00.8]} 6. Nc3 {[%clk 0:02:20.8]} 6... Nf6 {[%clk
0:03:01.3]} 7. Bg5 {[%clk 0:02:16.4]} 7... Qd6 {[%clk 0:02:52.2]} 8. e3 {[%clk
0:02:14.1]} 8... e5 {[%clk 0:02:28.1]} 9. Bxf6 {[%clk 0:02:05.5]} 9... Qxf6
{[%clk 0:02:24.6]} 10. d5 {[%clk 0:01:58.4]} 10... Bd7 {[%clk 0:02:24.6]} 11.
Bb5 {[%clk 0:01:51.1]} 11... Bxb5 {[%clk 0:01:55]} 12. Nxb5 {[%clk 0:01:51.9]}
12... Bb4+ {[%clk 0:01:55.9]} 13. Nc3 {[%clk 0:01:33.6]} 13... O-O {[%clk
0:01:53]} 14. O-O {[%clk 0:01:32.8]} 14... Bxc3 {[%clk 0:01:46.1]} 15. bxc3
{[%clk 0:01:32.6]} 15... e4 {[%clk 0:01:45.4]} 16. c4 {[%clk 0:01:25.4]} 16...
Rad8 {[%clk 0:01:44]} 17. Qb3 {[%clk 0:01:15.7]} 17... b6 {[%clk 0:01:42.3]} 18.
a4 {[%clk 0:01:14.6]} 18... Rfe8 {[%clk 0:01:31.1]} 19. a5 {[%clk 0:01:04.2]}
19... Re5 {[%clk 0:01:30.9]} 20. axb6 {[%clk 0:01:03.5]} 20... axb6 {[%clk
0:01:31.8]} 21. Ra7 {[%clk 0:01:01.7]} 21... Rh5 {[%clk 0:01:30.8]} 22. h3
{[%clk 0:00:54.4]} 22... Rg5 {[%clk 0:01:02.6]} 23. Rfa1 {[%clk 0:00:43.1]}
23... h5 {[%clk 0:00:54.8]} 24. Ra8 {[%clk 0:00:40.7]} 24... Rxa8 {[%clk
0:00:50.7]} 25. Rxa8+ {[%clk 0:00:41.6]} 25... Kh7 {[%clk 0:00:51.6]} 26. Qd1
{[%clk 0:00:22.1]} 26... h4 {[%clk 0:00:50]} 27. Re8 {[%clk 0:00:19.3]} 27...
Qg6 {[%clk 0:00:19.6]} 28. Qf1 {[%clk 0:00:17.8]} 28... Qf5 {[%clk 0:00:14.9]}
29. Kh1 {[%clk 0:00:12.9]} 29... g6 {[%clk 0:00:13.4]} 30. Qa1 {[%clk
0:00:10.3]} 30... f6 {[%clk 0:00:13.6]} 31. Qa8 {[%clk 0:00:08.7]} 31... Qe5
{[%clk 0:00:02]} 32. Rh8+ {[%clk 0:00:07.1]} 1-0

[Event "Late-Titled-Tuesday-Blitz-January-23-2024"]
[Site "Chess.com"]
[Date "2024.01.23"]
[Round "9"]
[White "Harry_Rakkel"]
[Black "sergiochess83"]
[Result "1-0"]
[WhiteElo "2721"]
[BlackElo "2871"]
[TimeControl "180+1"]
[EndTime "15:42:21 PST"]
[Termination "Harry_Rakkel won by resignation"]

1. e4 {[%clk 0:02:55.3]} 1... e5 {[%clk 0:02:53.2]} 2. Nf3 {[%clk 0:02:54.5]}
2... Nc6 {[%clk 0:02:53]} 3. Bc4 {[%clk 0:02:53.7]} 3... Bc5 {[%clk 0:02:51.7]}
4. O-O {[%clk 0:02:52.4]} 4... Nf6 {[%clk 0:02:52.2]} 5. d3 {[%clk 0:02:51.9]}
5... d6 {[%clk 0:02:52]} 6. c3 {[%clk 0:02:50.7]} 6... a5 {[%clk 0:02:49.6]} 7.
Nbd2 {[%clk 0:02:46]} 7... O-O {[%clk 0:02:46.6]} 8. h3 {[%clk 0:02:41.3]} 8...
h6 {[%clk 0:02:43.4]} 9. Re1 {[%clk 0:02:39.9]} 9... Be6 {[%clk 0:02:39.7]} 10.
a4 {[%clk 0:02:35.9]} 10... Ba7 {[%clk 0:02:26.6]} 11. Qb3 {[%clk 0:02:32]}
11... Qd7 {[%clk 0:02:24.1]} 12. Nf1 {[%clk 0:02:20.2]} 12... Bxc4 {[%clk
0:02:23]} 13. Qxc4 {[%clk 0:02:20.8]} 13... Qe6 {[%clk 0:02:11]} 14. Qb5 {[%clk
0:02:02]} 14... Rab8 {[%clk 0:01:59.5]} 15. Be3 {[%clk 0:01:59]} 15... Bxe3
{[%clk 0:01:32.4]} 16. Nxe3 {[%clk 0:01:57.8]} 16... Qd7 {[%clk 0:01:33]} 17.
Nd5 {[%clk 0:01:50.8]} 17... Nh7 {[%clk 0:01:25.2]} 18. d4 {[%clk 0:01:46]}
18... exd4 {[%clk 0:01:22.8]} 19. Nxd4 {[%clk 0:01:41.8]} 19... Kh8 {[%clk
0:01:17.9]} 20. Rad1 {[%clk 0:01:36.3]} 20... Rfe8 {[%clk 0:01:14.1]} 21. Nf5
{[%clk 0:01:32.1]} 21... Ng5 {[%clk 0:01:07.9]} 22. f3 {[%clk 0:01:11.6]} 22...
Ne6 {[%clk 0:00:58.5]} 23. Rd2 {[%clk 0:01:05.8]} 23... Qd8 {[%clk 0:00:57.8]}
24. Red1 {[%clk 0:01:04.3]} 24... Kh7 {[%clk 0:00:47.6]} 25. Kh1 {[%clk
0:00:52.6]} 25... h5 {[%clk 0:00:46.5]} 26. Nfe3 {[%clk 0:00:41.8]} 26... Qg5
{[%clk 0:00:44.5]} 27. Nc4 {[%clk 0:00:39.4]} 27... Ne5 {[%clk 0:00:36.6]} 28.
Nxe5 {[%clk 0:00:35.4]} 28... Qxe5 {[%clk 0:00:27.3]} 29. Qc4 {[%clk 0:00:24.8]}
29... Rbd8 {[%clk 0:00:13.5]} 30. Rf1 {[%clk 0:00:24.2]} 30... c6 {[%clk
0:00:10.1]} 31. Ne3 {[%clk 0:00:19.6]} 31... d5 {[%clk 0:00:10.5]} 32. Qe2
{[%clk 0:00:15.1]} 32... Nf4 {[%clk 0:00:10.1]} 33. Qf2 {[%clk 0:00:12.5]} 33...
dxe4 {[%clk 0:00:10.4]} 34. Rxd8 {[%clk 0:00:12.1]} 34... Rxd8 {[%clk
0:00:10.2]} 35. fxe4 {[%clk 0:00:12.1]} 35... Nd3 {[%clk 0:00:08.4]} 36. Qf3
{[%clk 0:00:11]} 36... Rd7 {[%clk 0:00:07.1]} 37. Nf5 {[%clk 0:00:09.9]} 37...
Nc5 {[%clk 0:00:07.1]} 38. Qxh5+ {[%clk 0:00:08.8]} 38... Kg8 {[%clk 0:00:07.8]}
39. Nh6+ {[%clk 0:00:09]} 1-0

[Event "Late-Titled-Tuesday-Blitz-January-23-2024"]
[Site "Chess.com"]
[Date "2024.01.23"]
[Round "9"]
[White "howitzer14"]
[Black "tgpgoat"]
[Result "1-0"]
[WhiteElo "2948"]
[BlackElo "2430"]
[TimeControl "180+1"]
[EndTime "15:42:21 PST"]
[Termination "howitzer14 won by resignation"]

1. d4 {[%clk 0:02:51.8]} 1... Nf6 {[%clk 0:02:58.9]} 2. c4 {[%clk 0:02:51.2]}
2... e6 {[%clk 0:02:58.6]} 3. Nc3 {[%clk 0:02:50]} 3... Bb4 {[%clk 0:02:58.7]}
4. f3 {[%clk 0:02:50]} 4... O-O {[%clk 0:02:58]} 5. e4 {[%clk 0:02:46.1]} 5...
Bxc3+ {[%clk 0:02:57.7]} 6. bxc3 {[%clk 0:02:45.9]} 6... d6 {[%clk 0:02:58.6]}
7. Bd3 {[%clk 0:02:44.8]} 7... e5 {[%clk 0:02:58.5]} 8. Ne2 {[%clk 0:02:40.6]}
8... Nc6 {[%clk 0:02:57.6]} 9. Bg5 {[%clk 0:02:37.8]} 9... h6 {[%clk 0:02:41.5]}
10. Bh4 {[%clk 0:02:37.6]} 10... g5 {[%clk 0:02:40.1]} 11. Bf2 {[%clk
0:02:35.1]} 11... Kg7 {[%clk 0:02:38.6]} 12. c5 {[%clk 0:02:20.3]} 12... dxc5
{[%clk 0:02:32.6]} 13. d5 {[%clk 0:02:16]} 13... Ne7 {[%clk 0:02:29.4]} 14. Bxc5
{[%clk 0:02:14.3]} 14... Nd7 {[%clk 0:02:29.3]} 15. Ba3 {[%clk 0:02:10.5]} 15...
c6 {[%clk 0:02:20.9]} 16. O-O {[%clk 0:01:35.9]} 16... Re8 {[%clk 0:01:58.1]}
17. c4 {[%clk 0:01:32.6]} 17... cxd5 {[%clk 0:01:41.8]} 18. cxd5 {[%clk
0:01:31.3]} 18... b6 {[%clk 0:01:42.2]} 19. Rc1 {[%clk 0:01:26.4]} 19... Bb7
{[%clk 0:01:40.6]} 20. Ng3 {[%clk 0:01:23.5]} 20... Nc5 {[%clk 0:01:33.3]} 21.
Bb5 {[%clk 0:01:10.7]} 21... Rf8 {[%clk 0:01:24.3]} 22. Rxc5 {[%clk 0:00:57]}
22... bxc5 {[%clk 0:01:25.2]} 23. Bxc5 {[%clk 0:00:57.4]} 23... Rc8 {[%clk
0:01:10.5]} 24. Bxe7 {[%clk 0:00:48.2]} 24... Qb6+ {[%clk 0:01:08.7]} 25. Kh1
{[%clk 0:00:48.4]} 25... Qxb5 {[%clk 0:01:00.3]} 26. Nf5+ {[%clk 0:00:49]} 26...
Kh7 {[%clk 0:00:57.8]} 27. Bxf8 {[%clk 0:00:43.2]} 27... Rxf8 {[%clk 0:00:54.3]}
28. Qb1 {[%clk 0:00:43.7]} 28... Ba6 {[%clk 0:00:52.9]} 29. Qxb5 {[%clk
0:00:43.1]} 29... Bxb5 {[%clk 0:00:53.3]} 30. Rb1 {[%clk 0:00:44]} 30... a6
{[%clk 0:00:53.3]} 31. Rc1 {[%clk 0:00:42.4]} 31... Rb8 {[%clk 0:00:50.1]} 32.
h3 {[%clk 0:00:29.1]} 32... Bd7 {[%clk 0:00:46.3]} 33. Rc7 {[%clk 0:00:29.2]}
33... Bxf5 {[%clk 0:00:17.3]} 34. Rxf7+ {[%clk 0:00:28.7]} 34... Kg6 {[%clk
0:00:18.2]} 35. Rxf5 {[%clk 0:00:28.7]} 35... Re8 {[%clk 0:00:16]} 36. h4 {[%clk
0:00:23.4]} 36... Re7 {[%clk 0:00:13.1]} 37. Kh2 {[%clk 0:00:22.8]} 37... Re8
{[%clk 0:00:11.8]} 38. Kh3 {[%clk 0:00:23]} 38... Re7 {[%clk 0:00:11.2]} 39. a4
{[%clk 0:00:22.6]} 39... Re8 {[%clk 0:00:11]} 40. a5 {[%clk 0:00:23.3]} 40...
Re7 {[%clk 0:00:11.3]} 41. hxg5 {[%clk 0:00:20.8]} 41... hxg5 {[%clk 0:00:10.8]}
42. Kg4 {[%clk 0:00:21.5]} 42... Rc7 {[%clk 0:00:10.6]} 43. Rxe5 {[%clk
0:00:20.4]} 43... Kf6 {[%clk 0:00:11.5]} 44. Rf5+ {[%clk 0:00:20.3]} 44... Ke7
{[%clk 0:00:11.3]} 45. Kxg5 {[%clk 0:00:20.8]} 45... Rc5 {[%clk 0:00:12.1]} 46.
d6+ {[%clk 0:00:20.4]} 46... Kxd6 {[%clk 0:00:13]} 47. Rxc5 {[%clk 0:00:21]}
47... Kxc5 {[%clk 0:00:13.9]} 48. e5 {[%clk 0:00:21.7]} 1-0

[Event "Late-Titled-Tuesday-Blitz-January-23-2024"]
[Site "Chess.com"]
[Date "2024.01.23"]
[Round "9"]
[White "GothamChess"]
[Black "FredddieCroderg"]
[Result "1-0"]
[WhiteElo "2755"]
[BlackElo "2392"]
[TimeControl "180+1"]
[EndTime "15:42:30 PST"]
[Termination "GothamChess won on time"]

1. e4 {[%clk 0:03:00.9]} 1... c6 {[%clk 0:02:52.2]} 2. d4 {[%clk 0:03:00.6]}
2... d5 {[%clk 0:02:52.3]} 3. Nc3 {[%clk 0:03:01.2]} 3... dxe4 {[%clk
0:02:51.9]} 4. Nxe4 {[%clk 0:03:01.9]} 4... Nf6 {[%clk 0:02:52.1]} 5. Ng5 {[%clk
0:03:02.6]} 5... Bf5 {[%clk 0:02:50.8]} 6. N1f3 {[%clk 0:03:02.1]} 6... h6
{[%clk 0:02:47.6]} 7. Nxf7 {[%clk 0:03:02.2]} 7... Kxf7 {[%clk 0:02:47]} 8. Ne5+
{[%clk 0:03:02.2]} 8... Kg8 {[%clk 0:02:38.6]} 9. Bc4+ {[%clk 0:02:57]} 9... Nd5
{[%clk 0:02:30.8]} 10. Qf3 {[%clk 0:02:46.6]} 10... e6 {[%clk 0:02:29.9]} 11. g4
{[%clk 0:02:44.3]} 11... Qf6 {[%clk 0:01:50]} 12. gxf5 {[%clk 0:02:33]} 12...
Qxf5 {[%clk 0:01:49.2]} 13. c3 {[%clk 0:02:15.4]} 13... Bd6 {[%clk 0:01:36.5]}
14. Rg1 {[%clk 0:02:05.5]} 14... Bxe5 {[%clk 0:01:30.5]} 15. Qxf5 {[%clk
0:02:05.1]} 15... exf5 {[%clk 0:01:26.2]} 16. dxe5 {[%clk 0:02:05.5]} 16... Nd7
{[%clk 0:01:21.9]} 17. f4 {[%clk 0:02:02.2]} 17... Kh7 {[%clk 0:00:37.9]} 18. h4
{[%clk 0:01:55.5]} 18... Nf8 {[%clk 0:00:32.5]} 19. Bd3 {[%clk 0:01:37.4]} 19...
Ne7 {[%clk 0:00:17.2]} 20. h5 {[%clk 0:01:29.4]} 20... Ne6 {[%clk 0:00:14.8]}
21. Be3 {[%clk 0:01:22.9]} 21... Rad8 {[%clk 0:00:14.2]} 22. Bc2 {[%clk
0:01:13.6]} 22... Rhf8 {[%clk 0:00:11.4]} 23. Ke2 {[%clk 0:01:06.5]} 23... Nd5
{[%clk 0:00:11.2]} 24. Kf3 {[%clk 0:01:06.4]} 24... Nxe3 {[%clk 0:00:09]} 25.
Kxe3 {[%clk 0:01:07.3]} 25... Nc5 {[%clk 0:00:03.5]} 26. b4 {[%clk 0:01:04.7]}
26... Ne6 {[%clk 0:00:03.4]} 27. Rg6 {[%clk 0:01:01.4]} 27... Nc7 {[%clk
0:00:03]} 28. Bb3 {[%clk 0:00:52.7]} 28... Nd5+ {[%clk 0:00:02.6]} 29. Bxd5
{[%clk 0:00:53]} 29... Rxd5 {[%clk 0:00:03.2]} 30. Rag1 {[%clk 0:00:53.2]} 30...
Rf7 {[%clk 0:00:02.7]} 31. c4 {[%clk 0:00:47.4]} 31... Rdd7 {[%clk 0:00:01.8]}
32. a4 {[%clk 0:00:36.5]} 32... Rde7 {[%clk 0:00:02.7]} 33. b5 {[%clk
0:00:35.2]} 33... Rf8 {[%clk 0:00:03.3]} 34. bxc6 {[%clk 0:00:34.5]} 34... bxc6
{[%clk 0:00:04.2]} 35. Rxc6 {[%clk 0:00:34.7]} 35... Rb8 {[%clk 0:00:04.5]} 36.
Kd4 {[%clk 0:00:31.4]} 36... Rb3 {[%clk 0:00:04.5]} 37. Rf1 {[%clk 0:00:28.4]}
37... Ra3 {[%clk 0:00:03.9]} 38. Ra6 {[%clk 0:00:23.8]} 38... Ra2 {[%clk
0:00:03.5]} 39. e6 {[%clk 0:00:22.9]} 39... Re2 {[%clk 0:00:02.5]} 40. Kd5
{[%clk 0:00:22.4]} 40... Re4 {[%clk 0:00:02.6]} 41. c5 {[%clk 0:00:21.7]} 41...
Re8 {[%clk 0:00:01.5]} 42. Rd6 {[%clk 0:00:21.6]} 42... Rc8 {[%clk 0:00:01.3]}
43. Rc1 {[%clk 0:00:15.6]} 43... Rxa4 {[%clk 0:00:01.8]} 44. e7 {[%clk
0:00:13.9]} 44... Rxf4 {[%clk 0:00:02.2]} 45. Re6 {[%clk 0:00:13.8]} 1-0

[Event "Late-Titled-Tuesday-Blitz-January-23-2024"]
[Site "Chess.com"]
[Date "2024.01.23"]
[Round "9"]
[White "iturrizaga"]
[Black "DavidGavrilescu18"]
[Result "1-0"]
[WhiteElo "3023"]
[BlackElo "2818"]
[TimeControl "180+1"]
[EndTime "15:42:32 PST"]
[Termination "iturrizaga won by checkmate"]

1. c4 {[%clk 0:03:00.9]} 1... e6 {[%clk 0:02:56.9]} 2. Nf3 {[%clk 0:03:00.4]}
2... d5 {[%clk 0:02:57.4]} 3. e3 {[%clk 0:03:01.3]} 3... Nf6 {[%clk 0:02:57.2]}
4. b3 {[%clk 0:03:01.5]} 4... c5 {[%clk 0:02:57]} 5. Bb2 {[%clk 0:03:02]} 5...
Nc6 {[%clk 0:02:57.1]} 6. cxd5 {[%clk 0:03:01.1]} 6... exd5 {[%clk 0:02:57.3]}
7. Bb5 {[%clk 0:03:01.3]} 7... Bd6 {[%clk 0:02:56.5]} 8. O-O {[%clk 0:02:59.1]}
8... O-O {[%clk 0:02:56.3]} 9. d4 {[%clk 0:02:59.5]} 9... cxd4 {[%clk
0:02:55.9]} 10. Nxd4 {[%clk 0:03:00.1]} 10... Bc7 {[%clk 0:02:56.3]} 11. Nd2
{[%clk 0:02:50.3]} 11... Qd6 {[%clk 0:02:53.3]} 12. N4f3 {[%clk 0:02:45.5]}
12... Bg4 {[%clk 0:02:50.4]} 13. h3 {[%clk 0:02:44.1]} 13... Bh5 {[%clk
0:02:50.5]} 14. Rc1 {[%clk 0:02:43.8]} 14... Rfe8 {[%clk 0:02:49.5]} 15. Bxc6
{[%clk 0:02:16.8]} 15... bxc6 {[%clk 0:02:50.4]} 16. Qc2 {[%clk 0:02:17.2]}
16... Rac8 {[%clk 0:02:47.2]} 17. Rfd1 {[%clk 0:01:56.3]} 17... Ba5 {[%clk
0:02:34.2]} 18. Bc3 {[%clk 0:01:23]} 18... Bb6 {[%clk 0:02:20.4]} 19. Qf5 {[%clk
0:01:13.3]} 19... Bg6 {[%clk 0:02:13.3]} 20. Qg5 {[%clk 0:01:13.6]} 20... h6
{[%clk 0:02:09.1]} 21. Qh4 {[%clk 0:01:13.6]} 21... Ne4 {[%clk 0:02:07.4]} 22.
Bd4 {[%clk 0:00:44.6]} 22... c5 {[%clk 0:01:51.4]} 23. Bb2 {[%clk 0:00:42]}
23... Qe6 {[%clk 0:01:24.4]} 24. Nxe4 {[%clk 0:00:33.8]} 24... Bxe4 {[%clk
0:01:22.9]} 25. Nd2 {[%clk 0:00:32.9]} 25... Bg6 {[%clk 0:01:18.9]} 26. Nf1
{[%clk 0:00:28.9]} 26... Rcd8 {[%clk 0:01:09.7]} 27. Ng3 {[%clk 0:00:28.2]}
27... Kh7 {[%clk 0:00:59.7]} 28. Ne2 {[%clk 0:00:26.4]} 28... d4 {[%clk
0:00:32.7]} 29. Nf4 {[%clk 0:00:26.7]} 29... Qf5 {[%clk 0:00:30.6]} 30. exd4
{[%clk 0:00:14.8]} 30... cxd4 {[%clk 0:00:30.1]} 31. Qg3 {[%clk 0:00:10]} 31...
Rd6 {[%clk 0:00:20.7]} 32. Nd3 {[%clk 0:00:04.4]} 32... Rde6 {[%clk 0:00:17.7]}
33. Rd2 {[%clk 0:00:04.9]} 33... Re2 {[%clk 0:00:16.6]} 34. Rcd1 {[%clk
0:00:05.3]} 34... Rxd2 {[%clk 0:00:11.3]} 35. Rxd2 {[%clk 0:00:06.2]} 35... Re7
{[%clk 0:00:11.3]} 36. Qf4 {[%clk 0:00:05.2]} 36... Re1+ {[%clk 0:00:09.7]} 37.
Kh2 {[%clk 0:00:04.7]} 37... Qd7 {[%clk 0:00:07]} 38. Qg3 {[%clk 0:00:04]} 38...
Bc7 {[%clk 0:00:07]} 39. Nf4 {[%clk 0:00:04.2]} 39... d3 {[%clk 0:00:06.1]} 40.
Qf3 {[%clk 0:00:02.7]} 40... Be4 {[%clk 0:00:05.3]} 41. Qg3 {[%clk 0:00:03.4]}
41... Qf5 {[%clk 0:00:05.4]} 42. Qxg7# {[%clk 0:00:03.5]} 1-0